Service Area,Expense Type,Date,Transaction Number,Amount,Supplier
Medina Leisure Centre,Vehicle Maint Costs,2010-04-12,5000071608,1768.35,Dh Price Motors
Medina Leisure Centre,Pay To Pvte Contract,2010-04-14,5000072176,784.33,Adt Fire And Security Plc
Medina Leisure Centre,Pay To Pvte Contract,2010-04-14,5000072174,2130.71,Adt Fire And Security Plc
Medina Leisure Centre,Prop Svs Planned Mtc,2010-05-04,5000075896,6300.0,Combined Power Ltd
Medina Leisure Centre,Licences,2010-05-18,5105686413,2001.09,The Performing Right Society
Medina Leisure Centre,Delegated Minor Main,2010-05-21,5000079639,625.0,Mansell Construction Services Ltd
Medina Leisure Centre,Water And Sewerage,2010-05-24,1900177882,4762.77,Southern Water Authority
Medina Leisure Centre,Prop Svs   Bldg Mtce,2010-05-28,5000081059,576.29,Mansell Construction [Sb]
Medina Leisure Centre,Cons Cleaning Materi,2010-06-07,5000082361,1699.65,Complete Pool Controls Ltd
Medina Leisure Centre,Pay To Pvte Contract,2010-06-11,5000083714,683.76,Cannon Hygiene Ltd
Medina Leisure Centre,Pay To Pvte Contract,2010-06-29,5000087309,719.64,Bks Security Services
Medina Leisure Centre,Prop Svs   Bldg Mtce,2010-07-02,5000087967,698.15,Mountjoy Ltd [Sb]
Medina Leisure Centre,Printing Costs,2010-07-12,5105698837,650.0,Maracis Solutions Limited
Medina Leisure Centre,Delegated Minor Main,2010-07-19,5000091030,-625.0,Mansell Construction Services Ltd
Medina Leisure Centre,Pay To Pvte Contract,2010-07-21,5000091589,652.0,Mansell Construction Services Ltd
Medina Leisure Centre,Licences,2010-08-02,5105603701,508.25,Phonographic Performance Ltd
Medina Leisure Centre,Prop Svs   Bldg Mtce,2010-08-03,5000094085,719.93,Mansell Construction [Sb]
Medina Leisure Centre,Pay To Pvte Contract,2010-08-06,5000094794,1080.0,Navigate Solutions Llp
Medina Leisure Centre,Printing Costs,2010-08-26,5105609309,633.35,Cedar Group
Medina Leisure Centre,Prop Svs   Bldg Mtce,2010-08-27,5000098224,2800.0,R G Combustions[Sb]
Medina Leisure Centre,Pay To Pvte Contract,2010-09-03,5105611505,1331.76,Bunzl Vending Services Limited
Medina Leisure Centre,Pay To Pvte Contract,2010-09-09,5000100550,1609.5,Technogym Uk Ltd
Medina Leisure Centre,Pay To Pvte Contract,2010-09-28,5000103802,735.0,Grist Electronics Ltd
Medina Leisure Centre,Prop Svs   Bldg Mtce,2010-09-28,5000103834,853.0,R G Combustions[Sb]
Medina Leisure Centre,Clothing & Laundry,2010-10-01,5000104506,866.77,Arco Ltd
Medina Leisure Centre,Clothing & Laundry,2010-10-06,5000105189,-866.77,Arco Ltd
Medina Leisure Centre,Clothing & Laundry,2010-10-08,5000105574,744.75,Arco Ltd
Medina Leisure Centre,Cons Cleaning Materi,2010-11-23,5000113937,2266.2,Complete Pool Controls Ltd
Medina Leisure Centre,Clothing & Laundry,2010-11-25,5000114458,820.13,Arco Ltd
Medina Leisure Centre,Clothing & Laundry,2010-11-25,5000114457,-732.38,Arco Ltd
Medina Leisure Centre,Water And Sewerage,2010-11-29,1900265529,4070.0,Southern Water Authority
Medina Leisure Centre,Prop Svs   Bldg Mtce,2010-12-07,5000116051,8062.0,Envirocare Services Ltd
Medina Leisure Centre,Prop Svs   Bldg Mtce,2010-12-14,5000116969,639.88,Mansell Construction [Sb]
Medina Leisure Centre,Prop Svs   Bldg Mtce,2011-01-04,5000119425,646.4,Mansell Construction [Sb]
Medina Leisure Centre,Licences,2011-01-05,5000119560,876.55,The Performing Right Society
Medina Leisure Centre,Delegated Minor Main,2011-01-06,5000119951,785.8,Technogym Uk Ltd
Medina Leisure Centre,Operational Equipmen,2011-01-06,5000119953,6350.0,Airspace Solututions.Com Ltd
Medina Leisure Centre,Clothing & Laundry,2011-01-12,5000121041,-820.13,Arco Ltd
Medina Leisure Centre,Clothing & Laundry,2011-01-12,5000121203,717.48,Arco Ltd
Medina Leisure Centre,Cons Cleaning Materi,2011-01-18,5000122163,-2266.2,Complete Pool Controls Ltd
Medina Leisure Centre,Prop Svs Planned Mtc,2011-01-31,5000124266,632.0,Besam Ltd
Medina Leisure Centre,Clothing & Laundry,2011-02-18,5000127902,-686.18,Arco Ltd
Medina Leisure Centre,Clothing & Laundry,2011-02-18,5000127903,657.96,Arco Ltd
Medina Leisure Centre,Prop Svs   Bldg Mtce,2011-03-08,5000130858,872.73,Mansell Construction [Sb]
Medina Leisure Centre,Delegated Minor Main,2011-03-25,5000133861,600.0,Technical Services Team Ltd
Medina Leisure Centre,Pay To Pvte Contract,2011-03-29,5000134472,1215.0,Mountjoy Ltd
Medina Leisure Centre,Operational Equipmen,2011-03-30,5000134745,700.0,Technogym Uk Ltd
Medina Leisure Centre,Operational Equipmen,2011-04-11,5000136445,-700.0,Technogym Uk Ltd
Medina Leisure Centre,Prop Svs Planned Mtc,2011-04-12,5000136647,6490.0,Combined Power Ltd
Medina Leisure Centre,Pay To Pvte Contract,2011-04-15,5000137400,683.76,Cannon Hygiene
Medina Leisure Centre,Pay To Pvte Contract,2011-05-09,5000140171,2198.89,Adt Fire And Security Plc
Medina Leisure Centre,Pay To Pvte Contract,2011-05-16,5000141463,809.42,Adt Fire And Security Plc
Medina Leisure Centre,Licences,2011-05-24,5105665892,1547.23,The Performing Right Society
Medina Leisure Centre,Prop Svs   Bldg Mtce,2011-05-31,5000143552,965.12,Besam Ltd
Medina Leisure Centre,Pay To Pvte Contract,2011-06-02,5000143927,4350.0,D N Associates Limited
Medina Leisure Centre,Licences,2011-06-10,5105668667,533.42,Phonographic Performance Ltd
Medina Leisure Centre,Delegated Minor Main,2011-06-14,5000145669,600.0,K Coghlan Plant & Transport Ltd
Medina Leisure Centre,Delegated Minor Main,2011-06-14,5000145723,553.0,Mansell Construction Services Ltd
Medina Leisure Centre,Water And Sewerage,2011-06-21,1900357347,1715.54,Southern Water Authority
Medina Leisure Centre,Delegated Minor Main,2011-06-23,5000147092,536.0,Continental Sport Ltd
Medina Leisure Centre,Operational Equipmen,2011-06-27,5105672171,670.0,Duncan Stewart Textiles Limited
Medina Leisure Centre,Pay To Pvte Contract,2011-06-27,5000147451,504.0,Bks Security Services
Medina Leisure Centre,Prop Svs   Bldg Mtce,2011-06-29,5000147791,1660.62,Mansell Construction [Sb]
Medina Leisure Centre,Prop Svs   Bldg Mtce,2011-06-29,5000147793,909.25,Mansell Construction [Sb]
Medina Leisure Centre,Pay To Pvte Contract,2011-07-05,5000148266,-1215.0,Mountjoy Ltd
Medina Leisure Centre,Pay To Pvte Contract,2011-07-06,5000148510,1215.0,Mountjoy Ltd [Sb]
Medina Leisure Centre,Operational Equipmen,2011-07-18,5105675789,3383.3,Heatsaver Limited
Medina Leisure Centre,Delegated Minor Main,2011-07-19,5000150971,1849.0,Mansell Construction Svcs Ltd [Sb]
Medina Leisure Centre,Prop Svs   Bldg Mtce,2011-07-22,5000151498,6198.05,Marine Management Consultancy
Medina Leisure Centre,Licences,2011-08-04,5000153017,955.78,The Performing Right Society
Medina Leisure Centre,Prop Svs   Bldg Mtce,2011-08-16,5000154595,2515.36,Mountjoy Ltd [Sb]
Medina Leisure Centre,Cons Cleaning Materi,2011-08-18,5000155258,2039.4,Complete Pool Controls Ltd
Medina Leisure Centre,Delegated Minor Main,2011-08-25,5000156254,1638.0,Mansell Construction Svcs Ltd [Sb]
Medina Leisure Centre,Delegated Minor Main,2011-08-25,5000156246,-1849.0,Mansell Construction Svcs Ltd [Sb]
Medina Leisure Centre,Pay To Pvte Contract,2011-09-21,5000159754,735.0,Grist Electronics Ltd
Medina Leisure Centre,Pay To Pvte Contract,2011-09-28,5105689236,675.0,Maracis Solutions Limited
Medina Leisure Centre,Prop Svs   Bldg Mtce,2011-10-05,5000161398,4450.0,Marine Management Consultancy
Medina Leisure Centre,Clothing & Laundry,2011-10-06,5000161718,574.82,Arco Ltd
Medina Leisure Centre,Water And Sewerage,2011-10-11,1900407226,958.18,Southern Water Authority
Medina Leisure Centre,Pay To Pvte Contract,2011-10-27,5105695389,1069.0,Maracis Solutions Limited
Medina Leisure Centre,Pay To Pvte Contract,2011-11-03,5000164944,1685.68,Adt Fire And Security Plc
Medina Leisure Centre,Photocopying Costs,2011-11-08,1900419746,693.57,Ricoh Uk Limited
Medina Leisure Centre,Pay To Pvte Contract,2011-11-09,5105697450,675.0,Maracis Solutions Limited
Medina Leisure Centre,Photocopying Costs,2011-11-09,5000165835,668.72,Ricoh Uk Limited
Medina Leisure Centre,Licences,2011-11-15,5000167327,882.97,The Performing Right Society
Medina Leisure Centre,Prop Svs   Bldg Mtce,2011-11-15,5000167187,1680.0,Mansell Construction Svcs Ltd [Sb]
Medina Leisure Centre,Prop Svs Only   Day To Day Mtce,2012-01-03,5000173553,2447.82,Jasun Envirocare Plc
Medina Leisure Centre,Prop Svs Only   Day To Day Mtce,2012-01-09,5000174751,712.84,Cold Service Ltd
Medina Leisure Centre,Consumable Cleaning Materials,2012-01-10,5000175057,1571.05,Complete Pool Controls Ltd
Medina Leisure Centre,Prop Svs Only   Day To Day Mtce,2012-01-20,5000176557,1678.8,Marine Management Consultancy
Medina Leisure Centre,Prop Svs Only   Day To Day Mtce,2012-01-31,5000177745,690.18,Mansell Construction Svcs Ltd [Sb]
Medina Leisure Centre,Photocopying Costs,2012-02-01,5000177940,668.72,Ricoh Uk Limited
Medina Leisure Centre,Consumable Cleaning Materials,2012-02-03,5000178317,-1571.05,Complete Pool Controls Ltd
Medina Leisure Centre,Prop Svs Only   Day To Day Mtce,2012-02-03,5000178305,987.0,R G Combustions[Sb]
Medina Leisure Centre,Consumable Cleaning Materials,2012-02-03,5000178318,1621.05,Complete Pool Controls Ltd
Medina Leisure Centre,Prop Svs Only   Day To Day Mtce,2012-02-08,5000179035,1414.0,R G Combustions[Sb]
Medina Leisure Centre,Photocopying Costs,2012-02-13,5105615783,-502.79,Ricoh Uk Limited
Medina Leisure Centre,Property Services   Planned Maintenance,2012-02-15,5000180522,670.0,Besam Ltd
Medina Leisure Centre,Operational Equipment,2012-02-16,GPC,1734.0,Premier Storage & Offi
Medina Leisure Centre,Consumable Cleaning Materials,2012-02-22,5000181776,2266.2,Complete Pool Controls Ltd
Medina Leisure Centre,Prop Svs Only   Day To Day Mtce,2012-03-02,5000183001,513.3,Mansell Construction Svcs Ltd [Sb]
Medina Leisure Centre,Prop Svs Only   Day To Day Mtce,2012-03-07,5000183632,597.82,Combined Power Ltd
Medina Leisure Centre,Payment To Private Contractors,2012-03-08,5000184153,5387.5,Medina College
Medina Leisure Centre,Payment To Private Contractors,2012-03-08,5000183881,-894.54,Biffa Waste Services Ltd
Medina Leisure Centre,Payment To Private Contractors,2012-03-08,5000183842,894.54,Biffa Waste Services Ltd
Medina Leisure Centre,Payment To Private Contractors,2012-03-19,5000186141,-5387.5,Medina College
Medina Leisure Centre,Payment To Private Contractors,2012-03-20,5000186340,5387.5,Medina College
